bitfinex/quotes_BTCUSD_20250124
["timestamp","ask_amount","ask_price","bid_price","bid_amount"]
[1737743667551,0.90960975,106860.0,106850.0,0.0001417]
[1737743667695,0.80886352,106860.0,106850.0,0.0001417]
[1737743668952,0.90960975,106860.0,106850.0,0.0001417]
[1737743669774,0.80886352,106860.0,106850.0,0.0001417]
[1737743669968,0.86503352,106860.0,106850.0,0.0001417]
[1737743670194,0.80886352,106860.0,106850.0,0.0001417]
[1737743670878,0.49844014,106860.0,106850.0,0.0001417]
[1737743671098,0.39769391,106860.0,106850.0,0.0001417]
[1737743671459,0.30034662,106860.0,106850.0,0.0001417]
[1737743672490,0.49844014,106860.0,106850.0,0.0001417]
[1737743672689,0.39769391,106860.0,106850.0,0.0001417]
[1737743675222,0.30034662,106860.0,106850.0,0.0001417]
[1737743676781,0.15997662,106860.0,106850.0,0.0001417]
[1737743676987,0.48037662,106860.0,106850.0,0.0471417]
[1737743677944,0.33037662,106860.0,106850.0,0.1470417]
[1737743678200,0.3204,106860.0,106850.0,0.34359283]
[1737743678406,0.00029758,106870.0,106860.0,0.198159]
[1737743679683,0.00029758,106870.0,106860.0,0.0999]
[1737743679905,0.00029758,106870.0,106860.0,0.19909466]
[1737743680123,0.00029758,106870.0,106860.0,0.198159]
[1737743681881,0.00029758,106870.0,106860.0,0.0999]
[1737743682100,0.00029758,106870.0,106860.0,0.0799]
[1737743682295,0.00029758,106870.0,106860.0,0.198159]
[1737743683545,0.00029758,106870.0,106860.0,0.0999]
[1737743683752,0.00029758,106870.0,106860.0,0.198159]
[1737743684461,0.00029758,106870.0,106860.0,0.0999]
[1737743684677,0.00029758,106870.0,106860.0,0.0799]
[1737743684888,0.39140081,106870.0,106860.0,0.0799]
[1737743685096,0.25104381,106870.0,106850.0,0.1229417]
[1737743685303,0.56151623,106860.0,106850.0,0.1229417]
[1737743686129,0.56151623,106860.0,106850.0,0.0759417]
[1737743686130,0.65886352,106860.0,106850.0,0.0759417]
[1737743686318,0.65886352,106860.0,106850.0,0.0001417]
[1737743687351,0.55811729,106860.0,106850.0,0.0001417]
[1737743688881,0.23771729,106860.0,106850.0,0.0001417]
[1737743689101,0.33846352,106860.0,106850.0,0.0001417]
[1737743689316,0.34825254,106860.0,106850.0,0.0001417]
[1737743690034,0.49825254,106860.0,106850.0,0.0001417]
[1737743690870,0.51721529,106860.0,106850.0,0.0001417]
[1737743694160,0.41646906,106860.0,106850.0,0.0001417]
[1737743694747,0.51721529,106860.0,106850.0,0.0001417]
[1737743697042,0.61796152,106860.0,106850.0,0.0001417]
[1737743698348,0.64096152,106860.0,106850.0,0.0001417]
[1737743701009,0.54021529,106860.0,106850.0,0.0001417]
[1737743701427,0.41646906,106860.0,106850.0,0.0001417]
[1737743701630,0.51721529,106860.0,106850.0,0.0794417]
[1737743702267,0.10713631,106860.0,106850.0,0.0794417]
[1737743702479,0.00978902,106860.0,106850.0,0.2429097]
[1737743702903,0.00029758,106870.0,106850.0,0.2946297]
[1737743703103,0.14065458,106870.0,106860.0,0.0793]
[1737743704820,0.15055022,106870.0,106860.0,0.0793]
[1737743706050,0.01019322,106870.0,106860.0,0.0793]
[1737743706513,0.15055022,106870.0,106860.0,0.0793]
[1737743706709,0.47095022,106870.0,106860.0,0.0793]
[1737743706915,0.57169645,106870.0,106860.0,0.0793]
[1737743707514,0.14037,106860.0,106850.0,0.1283417]
[1737743707741,0.48846352,106860.0,106850.0,0.1283417]
[1737743707940,0.61220975,106860.0,106850.0,0.0001417]
[1737743709210,0.48846352,106860.0,106850.0,0.0001417]
[1737743710274,0.58920975,106860.0,106850.0,0.0001417]
[1737743711084,0.61220975,106860.0,106850.0,0.0001417]
[1737743712264,0.48846352,106860.0,106850.0,0.0001417]
[1737743714417,0.5067759,106860.0,106850.0,0.0001417]
[1737743715706,0.5056759,106860.0,106850.0,0.0001417]
[1737743717356,0.30758238,106860.0,106850.0,0.0787417]
[1737743717796,0.40758238,106860.0,106850.0,0.0787417]
[1737743718217,0.24037,106860.0,106850.0,0.1244417]
[1737743718408,0.1,106860.0,106850.0,0.1244417]
[1737743718654,0.1,106860.0,106850.0,0.2227097]
[1737743718821,0.1,106860.0,106850.0,0.1244417]
[1737743719179,0.24037,106860.0,106850.0,0.1244417]
[1737743721552,0.56077,106860.0,106850.0,0.1244417]
[1737743722367,0.4204,106860.0,106850.0,0.2227097]
[1737743722568,0.4204,106860.0,106850.0,0.2427097]
[1737743722776,0.4204,106860.0,106850.0,0.34005699]
[1737743727579,0.1,106860.0,106850.0,0.34005699]
[1737743727820,0.1,106860.0,106850.0,0.1444417]
[1737743728035,0.24037,106860.0,106850.0,0.1244417]
[1737743728250,0.1,106860.0,106850.0,0.1244417]
[1737743728454,0.24037,106860.0,106850.0,0.1244417]
[1737743728849,0.24037,106860.0,106850.0,0.1444417]
[1737743729055,0.24037,106860.0,106850.0,0.1244417]
[1737743729490,0.24037,106860.0,106850.0,0.1444417]
[1737743729767,0.24066779,106860.0,106850.0,0.1244417]
[1737743730408,0.00029779,106860.0,106850.0,0.1244417]
[1737743730600,0.00029779,106860.0,106850.0,0.1444417]
[1737743730837,0.00029779,106860.0,106850.0,0.2427097]
[1737743732333,0.00029779,106860.0,106850.0,0.2426171]
[1737743733840,0.00029779,106860.0,106850.0,0.1443491]
[1737743734047,0.14066779,106860.0,106850.0,0.1243491]
[1737743734243,0.29066779,106860.0,106850.0,0.1243491]
[1737743734931,0.39141402,106860.0,106850.0,0.1243491]
[1737743735468,0.29066779,106860.0,106850.0,0.1243491]
[1737743735671,0.15029779,106860.0,106850.0,0.1243491]
[1737743735871,0.29066779,106860.0,106850.0,0.1243491]
[1737743740539,0.3092233,106860.0,106850.0,0.1243491]
[1737743741077,0.3092233,106860.0,106850.0,0.1242965]
[1737743741491,0.3092233,106860.0,106850.0,0.1244383]
[1737743744502,0.1688533,106860.0,106850.0,0.1244383]
[1737743744712,0.00029779,106860.0,106850.0,0.2427063]
[1737743745722,0.00029779,106860.0,106850.0,0.34005359]
[1737743746456,0.10029779,106860.0,106850.0,0.34005359]
[1737743746861,0.10029779,106860.0,106850.0,0.1444383]
[1737743747131,0.10029779,106860.0,106850.0,0.2427063]
[1737743747301,0.10029779,106860.0,106850.0,0.1444383]
[1737743747755,0.10029779,106860.0,106850.0,0.2427063]
[1737743748826,0.10029779,106860.0,106850.0,0.34005359]
[1737743749020,0.10029779,106860.0,106850.0,0.36856365]
[1737743751995,0.10029779,106860.0,106850.0,0.37732365]
[1737743752741,0.10029779,106860.0,106850.0,0.36856365]
[1737743753074,0.10029779,106860.0,106850.0,0.34005359]
[1737743753603,0.10029779,106860.0,106850.0,0.1444383]
[1737743754229,0.42069779,106860.0,106850.0,0.1444383]
[1737743754381,0.42069779,106860.0,106850.0,0.2427063]
[1737743754580,0.42069779,106860.0,106850.0,0.1444383]
[1737743754783,0.42069779,106860.0,106850.0,0.2427063]
[1737743755195,0.42069779,106860.0,106850.0,0.1444383]
[1737743756119,0.42069779,106860.0,106850.0,0.2427063]
[1737743756530,0.42069779,106860.0,106850.0,0.1444383]
[1737743757769,0.42069779,106860.0,106850.0,0.1244383]
[1737743758136,0.43062284,106860.0,106850.0,0.1244383]
[1737743761621,0.43062284,106860.0,106850.0,0.1444383]
[1737743762036,0.57099284,106860.0,106850.0,0.0787383]
[1737743762242,0.62168636,106860.0,106850.0,0.0001418]
[1737743762481,0.72243259,106860.0,106850.0,0.0001418]
[1737743762726,0.62168636,106860.0,106850.0,0.0001418]
[1737743762932,0.72243259,106860.0,106850.0,0.0001418]
[1737743764192,0.62168636,106860.0,106850.0,0.0001418]
[1737743768111,0.72243259,106860.0,106850.0,0.0001418]
[1737743768310,0.62168636,106860.0,106850.0,0.0001418]
[1737743768723,0.72243259,106860.0,106850.0,0.0001418]
[1737743769545,0.88592988,106860.0,106850.0,0.0001418]
[1737743769885,0.140409,106830.0,106820.0,0.0796]
[1737743770185,0.460823,106820.0,106810.0,0.1301417]
[1737743770406,0.80891652,106820.0,106810.0,0.0001417]
[1737743770813,0.80891652,106820.0,106810.0,0.08312159]
[1737743771391,0.80891652,106820.0,106810.0,0.08361284]
[1737743772014,0.80891652,106820.0,106810.0,0.08352563]
[1737743774192,0.80891652,106820.0,106810.0,0.08343855]
[1737743774403,0.80891652,106820.0,106810.0,0.00049125]
[1737743774937,0.51151652,106820.0,106810.0,0.00049125]
[1737743777132,0.53995535,106820.0,106810.0,0.00049125]
[1737743777489,0.53995535,106820.0,106810.0,0.00063305]
[1737743780317,0.51695535,106820.0,106810.0,0.00063305]
[1737743780896,0.17843883,106820.0,106810.0,0.12223305]
[1737743781097,0.02843883,106820.0,106810.0,0.12223305]
[1737743781303,0.61561623,106830.0,106810.0,0.12223305]
[1737743781522,0.140423,106820.0,106810.0,0.12223305]
[1737743781729,0.39116923,106820.0,106810.0,0.12223305]
[1737743781999,0.00996066,106830.0,106820.0,0.0779]
[1737743782203,0.47076966,106830.0,106820.0,0.0779]
[1737743782429,0.3204,106830.0,106820.0,0.176196]
[1737743782609,0.3204,106830.0,106820.0,0.196196]
[1737743783657,0.3204,106840.0,106830.0,0.244686]
[1737743784303,0.3204,106840.0,106830.0,0.34203329]
[1737743784515,0.3204,106840.0,106830.0,0.35079329]
[1737743784727,0.12935109,106860.0,106850.0,0.247668]
[1737743784898,0.11025352,106860.0,106850.0,0.247668]
[1737743785700,0.11025352,106860.0,106850.0,0.34501529]
[1737743785924,0.11030262,106860.0,106850.0,0.34501529]
[1737743787128,0.10034689,106860.0,106850.0,0.34501529]
[1737743788567,0.10034689,106860.0,106850.0,0.23550729]
[1737743788775,0.10034689,106860.0,106850.0,0.22674729]
[1737743788982,0.24071689,106860.0,106850.0,0.1294]
[1737743789394,0.49146312,106860.0,106850.0,0.1294]
[1737743790058,0.90921041,106860.0,106850.0,0.1294]
[1737743790314,0.985169,106850.0,106830.0,0.1288]
[1737743790511,1.18326252,106850.0,106830.0,0.1488]
[1737743790694,0.140396,106840.0,106830.0,0.1488]
[1737743790871,1.18326252,106850.0,106830.0,0.1488]
[1737743791073,0.99606952,106850.0,106830.0,0.1488]
[1737743791279,1.18325652,106850.0,106830.0,0.1488]
[1737743792005,0.99606952,106850.0,106830.0,0.1488]
[1737743792433,1.18326252,106850.0,106830.0,0.1488]
[1737743792636,1.18326252,106850.0,106830.0,0.1288]
[1737743793041,0.290396,106840.0,106830.0,0.1488]
[1737743793865,0.39114223,106840.0,106830.0,0.1488]
[1737743794225,0.290396,106840.0,106830.0,0.1488]
[1737743794943,0.15,106840.0,106830.0,0.1488]
[1737743795438,0.290396,106840.0,106830.0,0.1488]
[1737743795850,0.15,106840.0,106830.0,0.1483]
[1737743796329,0.290396,106840.0,106830.0,0.1483]
[1737743796533,0.15,106840.0,106830.0,0.1483]
[1737743796691,0.290396,106840.0,106830.0,0.1483]
[1737743798718,0.610796,106840.0,106830.0,0.1483]
[1737743799175,0.610796,106840.0,106830.0,0.1283]
[1737743800003,0.610796,106840.0,106830.0,0.1483]
[1737743803895,0.71154223,106840.0,106830.0,0.1483]
[1737743809754,0.71154223,106840.0,106830.0,0.1283]
[1737743810535,0.71154223,106840.0,106830.0,0.1483]
[1737743811181,0.71154223,106840.0,106830.0,0.1283]
[1737743812339,0.71154223,106840.0,106830.0,0.1284418]
[1737743812770,0.71184002,106840.0,106830.0,0.1484418]
[1737743812983,0.57144402,106840.0,106830.0,0.1484418]
[1737743813404,0.47069779,106840.0,106830.0,0.1484418]
[1737743814054,0.61109379,106840.0,106830.0,0.1484418]
[1737743814220,0.71184002,106840.0,106830.0,0.1484418]
[1737743814434,0.57144402,106840.0,106830.0,0.1484418]
[1737743814664,0.71184002,106840.0,106830.0,0.1484418]
[1737743816010,0.71184002,106840.0,106830.0,0.1284418]
[1737743816229,0.71184002,106840.0,106830.0,0.1484418]
[1737743818560,0.71184002,106840.0,106830.0,0.1284418]
[1737743818846,0.71184002,106840.0,106830.0,0.1484418]
[1737743819044,0.61109379,106840.0,106830.0,0.1284418]
[1737743820198,0.61109379,106840.0,106830.0,0.1484418]
[1737743820402,0.61109379,106840.0,106830.0,0.1284418]
[1737743821777,0.32069779,106840.0,106830.0,0.3450111]
[1737743821906,0.32069779,106840.0,106830.0,0.34407509]
[1737743822119,0.32069779,106840.0,106830.0,0.37259072]
[1737743822312,0.32069779,106840.0,106830.0,0.17695743]
[1737743822520,0.32069779,106840.0,106830.0,0.1284418]
[1737743822895,0.32069779,106840.0,106830.0,0.1484418]
[1737743823603,0.32069779,106840.0,106830.0,0.1284418]
[1737743823806,0.32069779,106840.0,106830.0,0.1484418]
[1737743824007,0.32069779,106840.0,106830.0,0.1284418]
[1737743824210,0.32069779,106840.0,106830.0,0.1484418]
[1737743824754,0.46109379,106840.0,106830.0,0.1284418]
[1737743824958,0.61109379,106840.0,106830.0,0.1484418]
[1737743825342,0.62080787,106840.0,106830.0,0.1484418]
[1737743825541,0.48041187,106840.0,106830.0,0.1484418]
[1737743825835,0.62080787,106840.0,106830.0,0.1484418]
[1737743826720,0.48041187,106840.0,106830.0,0.2467278]
[1737743827077,0.47069779,106840.0,106830.0,0.1484418]
[1737743827277,0.32069779,106840.0,106830.0,0.2467278]
[1737743827686,0.32069779,106840.0,106830.0,0.1484418]
[1737743827860,0.32069779,106840.0,106830.0,0.2467278]
[1737743828371,0.32069779,106840.0,106830.0,0.1484418]
[1737743829131,0.32069779,106840.0,106830.0,0.1284418]
[1737743829378,0.32069779,106840.0,106830.0,0.1484418]
[1737743829742,0.46109379,106840.0,106830.0,0.1284418]
[1737743830450,0.51178731,106840.0,106830.0,0.0001418]
[1737743831128,0.29069379,106840.0,106830.0,0.0001418]
[1737743837042,0.30906179,106840.0,106830.0,0.0001418]
[1737743839424,0.16866579,106840.0,106830.0,0.0001418]
[1737743839689,0.00029779,106840.0,106830.0,0.2481278]
[1737743840360,0.00029779,106840.0,106830.0,0.34547509]
[1737743840587,0.00029779,106840.0,106830.0,0.37402389]
[1737743845232,0.00029779,106840.0,106830.0,0.45719665]
[1737743846705,0.00029779,106840.0,106830.0,0.60719665]
[1737743846923,0.10034689,106860.0,106850.0,0.245768]
[1737743847130,0.10034689,106860.0,106850.0,0.37166409]
[1737743849790,0.10034689,106860.0,106850.0,0.37191042]
[1737743851385,0.10034689,106860.0,106850.0,0.34336162]
[1737743852184,0.10034689,106860.0,106850.0,0.35275175]
[1737743855299,0.10034689,106860.0,106850.0,0.82067175]
[1737743856317,0.10034689,106860.0,106850.0,0.81128162]
[1737743856522,0.10034689,106860.0,106850.0,0.82000162]
[1737743856725,0.10034689,106860.0,106850.0,0.72265433]
[1737743856934,0.10034689,106860.0,106850.0,0.71393433]
[1737743857151,0.24071689,106860.0,106850.0,0.54716633]
[1737743857294,0.10034689,106860.0,106850.0,0.56716633]
[1737743857679,0.10034689,106860.0,106850.0,0.54716633]
[1737743858151,0.10034689,106860.0,106850.0,0.56716633]
[1737743858411,0.10034689,106860.0,106850.0,0.66543433]
[1737743859320,0.10034689,106860.0,106850.0,0.71293433]
[1737743860148,0.10034689,106860.0,106850.0,0.81028162]
[1737743865015,0.10034689,106860.0,106850.0,0.8102816]
[1737743872234,0.10034689,106860.0,106850.0,0.7902816]
[1737743872443,0.10034689,106860.0,106850.0,0.8102816]
[1737743876604,0.10034689,106860.0,106850.0,0.8190016]
[1737743877527,0.10034689,106860.0,106850.0,0.7990016]
[1737743877727,0.10034689,106860.0,106850.0,0.8190016]
[1737743878238,0.10034689,106860.0,106850.0,0.84751153]
[1737743878550,0.10034689,106860.0,106850.0,0.8190016]
[1737743880023,0.10034689,106860.0,106850.0,0.84751798]
[1737743880200,0.10034689,106860.0,106850.0,0.8190016]
[1737743880619,0.5459435,106890.0,106850.0,0.84752327]
[1737743880833,0.73311061,106890.0,106860.0,0.25020068]
[1737743881147,0.73311061,106890.0,106860.0,0.24951131]
[1737743881308,0.74249372,106890.0,106860.0,0.25049741]
[1737743881666,0.74249072,106890.0,106860.0,0.25049741]
[1737743881883,0.55536972,106890.0,106860.0,0.25049741]
[1737743882082,0.140346,106880.0,106860.0,0.25049741]
[1737743882381,0.55536972,106890.0,106860.0,0.25049741]
[1737743882702,0.74249172,106890.0,106860.0,0.25049741]
[1737743882914,0.140345,106880.0,106860.0,0.23049741]
[1737743883141,0.74249272,106890.0,106860.0,0.25049741]
[1737743883341,0.55536972,106890.0,106860.0,0.25049741]
[1737743883617,0.74248972,106890.0,106860.0,0.38150941]
[1737743883751,0.140346,106880.0,106860.0,0.25049741]
[1737743883946,0.140346,106880.0,106860.0,0.11948741]
[1737743884157,0.140346,106880.0,106860.0,0.25143409]
[1737743884358,0.140346,106880.0,106860.0,0.25049841]
[1737743884714,0.140346,106880.0,106860.0,0.11948741]
[1737743884874,0.327471,106880.0,106860.0,0.02216809]
[1737743885483,0.327471,106880.0,106860.0,0.12042709]
[1737743886425,0.327471,106880.0,106860.0,0.11949141]
[1737743886806,0.327471,106880.0,106860.0,0.02123241]
[1737743887017,0.327471,106880.0,106860.0,0.11949141]
[1737743887228,0.327471,106880.0,106860.0,0.02123241]
[1737743887457,0.140357,106870.0,106860.0,0.00123241]
[1737743887946,0.140357,106870.0,106860.0,0.00024631]
[1737743888393,0.460757,106870.0,106860.0,0.00024631]
[1737743888602,0.3204,106870.0,106860.0,0.02024631]
[1737743888804,0.3204,106870.0,106860.0,0.10294631]
[1737743889443,0.3204,106870.0,106860.0,0.20120531]
[1737743889652,0.3204,106870.0,106860.0,0.10294631]
[1737743891324,0.04079372,106890.0,106870.0,0.02]
[1737743891524,0.04079372,106890.0,106880.0,0.180941]
[1737743891737,0.03141061,106890.0,106880.0,0.18118731]
[1737743891932,0.03141061,106890.0,106880.0,0.20212284]
[1737743892140,0.03141061,106890.0,106880.0,0.34813459]
[1737743892340,0.03141061,106890.0,106880.0,0.84447332]
[1737743893502,0.03141061,106890.0,106880.0,0.84447331]
[1737743893714,0.03170819,106890.0,106880.0,0.84447331]
[1737743894904,0.0284396,106890.0,106880.0,1.41041549]
[1737743895108,0.0284396,106890.0,106880.0,1.41041548]
[1737743895311,0.000298,106920.0,106910.0,0.118213]
[1737743895515,0.000298,106920.0,106910.0,0.26041448]
[1737743895771,0.000298,106920.0,106910.0,0.83450657]
[1737743895956,0.000298,106920.0,106910.0,0.8901495]
[1737743896203,0.000298,106920.0,106910.0,0.8801495]
[1737743896406,0.000298,106920.0,106910.0,0.85291799]
[1737743896612,0.000298,106920.0,106910.0,0.81578655]
[1737743896820,0.000298,106920.0,106910.0,0.82450655]
[1737743897028,0.000298,106920.0,106910.0,0.80450655]
[1737743897443,0.000298,106920.0,106910.0,0.79578655]
[1737743897591,0.000298,106920.0,106910.0,0.79578654]
[1737743898255,0.140589,106920.0,106910.0,0.60022625]
[1737743898580,0.000298,106920.0,106910.0,0.60022625]
[1737743898768,0.000298,106920.0,106910.0,0.81578654]
[1737743899402,0.000298,106920.0,106910.0,0.81578653]
[1737743900170,0.000298,106920.0,106910.0,0.84483973]
[1737743902289,0.000298,106920.0,106910.0,0.81578653]
[1737743902745,0.000298,106920.0,106910.0,0.84483973]
[1737743902955,0.000298,106920.0,106910.0,0.84483972]
[1737743904006,0.000298,106920.0,106910.0,0.81578652]
[1737743904185,0.000298,106920.0,106910.0,0.79578652]
[1737743904341,0.000298,106920.0,106910.0,0.82450652]
[1737743905336,0.000298,106920.0,106910.0,0.70715923]
[1737743905539,0.000298,106920.0,106910.0,0.72715923]
[1737743908535,0.000298,106920.0,106910.0,0.72715922]
[1737743910815,0.000298,106920.0,106910.0,0.70715922]
[1737743911020,0.000298,106920.0,106910.0,0.72715922]
[1737743911433,0.000298,106920.0,106910.0,0.82450651]
[1737743914147,0.000298,106920.0,106910.0,0.9745065]
[1737743914776,0.000298,106920.0,106910.0,0.9545065]
[1737743915322,0.000298,106920.0,106910.0,0.9745065]
[1737743915927,0.000298,106920.0,106910.0,0.9745065]
[1737743917262,0.000298,106920.0,106910.0,0.9845065]
[1737743917639,0.000298,106920.0,106910.0,1.8636065]
[1737743917840,0.000298,106920.0,106910.0,1.89251831]
[1737743918102,0.000298,106920.0,106910.0,1.8436065]
[1737743918456,0.000298,106920.0,106910.0,1.83360649]
[1737743918671,0.000298,106920.0,106910.0,1.84360649]
[1737743918867,0.000298,106920.0,106910.0,1.86360649]
[1737743919655,0.000298,106920.0,106910.0,1.8925183]
[1737743922309,0.000298,106920.0,106910.0,1.86360649]
[1737743922927,0.000298,106920.0,106910.0,1.83060649]
[1737743923146,0.000298,106920.0,106910.0,1.83060648]
[1737743923563,0.000298,106920.0,106910.0,1.30700648]
[1737743923889,0.000298,106920.0,106910.0,1.29700648]
[1737743924929,0.000298,106920.0,106910.0,1.12700648]
[1737743925071,0.000298,106920.0,106910.0,1.14700648]
[1737743925269,0.000298,106920.0,106910.0,0.58527348]
[1737743925493,0.000298,106920.0,106910.0,0.46792619]
[1737743926373,0.169389,106920.0,106910.0,0.46792619]
[1737743927441,0.319389,106920.0,106910.0,0.46792619]
[1737743927616,0.54098252,106920.0,106910.0,0.46792619]
[1737743928002,0.56878062,106920.0,106910.0,0.46792619]
[1737743928847,0.3471871,106920.0,106910.0,0.46792619]
[1737743930575,0.319389,106920.0,106910.0,0.46792619]
[1737743932284,0.290589,106920.0,106910.0,0.46792619]
[1737743932494,0.150298,106920.0,106910.0,0.46792619]
[1737743932668,0.290589,106920.0,106910.0,0.46792619]
[1737743933075,0.150298,106920.0,106910.0,0.46792619]
[1737743933853,0.290589,106920.0,106910.0,0.46792619]
[1737743939199,0.150298,106920.0,106910.0,0.46792619]
[1737743939763,0.290589,106920.0,106910.0,0.46792619]
[1737743941053,0.150298,106920.0,106910.0,0.56613919]
[1737743941268,0.150298,106920.0,106910.0,0.46792618]
[1737743941647,0.290589,106920.0,106910.0,0.46792618]
[1737743942027,0.150298,106920.0,106910.0,0.46792618]
[1737743944249,0.290589,106920.0,106910.0,0.46792618]
[1737743944673,0.290589,106920.0,106910.0,0.46692618]
[1737743946307,0.51748252,106920.0,106910.0,0.46692618]
[1737743946862,0.54048252,106920.0,106910.0,0.46692618]
[1737743947235,0.41723629,106920.0,106910.0,0.46692618]
[1737743947445,0.290589,106920.0,106910.0,0.46692618]
[1737743951345,0.38793629,106920.0,106910.0,0.46692618]
[1737743951539,0.290589,106920.0,106910.0,0.46692618]
[1737743952712,0.290589,106920.0,106910.0,0.46687362]
[1737743954377,0.50708735,106920.0,106910.0,0.46687362]
[1737743955216,0.87978735,106920.0,106910.0,0.46687362]
[1737743961116,0.98053358,106920.0,106910.0,0.46687362]
[1737743961302,0.99053358,106920.0,106910.0,0.37333862]
[1737743961501,0.72628358,106920.0,106910.0,0.37333862]
[1737743962104,0.72628358,106920.0,106910.0,0.00024618]
[1737743963985,0.72628358,106920.0,106910.0,0.00038788]
[1737743964203,0.72928358,106920.0,106910.0,0.00038788]
[1737743965606,0.61853735,106920.0,106910.0,0.00038788]
[1737743965810,0.62853735,106920.0,106910.0,0.00038788]
[1737743966383,0.72928358,106920.0,106910.0,0.00038788]
[1737743967995,0.62853735,106920.0,106910.0,0.00038788]
[1737743968146,0.72928358,106920.0,106910.0,0.00038788]
[1737743968542,0.62853735,106920.0,106910.0,0.00038788]
[1737743971709,0.72928358,106920.0,106910.0,0.00038788]
[1737743972370,0.62853735,106920.0,106910.0,0.00038788]
[1737743973302,0.62803735,106920.0,106910.0,0.00038788]
[1737743974390,0.53308735,106920.0,106910.0,0.00038788]
[1737743976164,0.63383358,106920.0,106910.0,0.00038788]
[1737743978739,0.63383358,106920.0,106890.0,0.0476329]
[1737743978740,0.173,106910.0,106890.0,0.0476329]
[1737743978941,0.51141152,106900.0,106890.0,0.0011329]
[1737743979165,0.67830775,106900.0,106890.0,0.0011329]
[1737743979411,0.67830775,106900.0,106870.0,0.047]
[1737743979412,0.41409023,106880.0,106870.0,0.047]
[1737743979541,0.313357,106870.0,106860.0,0.0009877]
[1737743979740,0.313357,106870.0,106850.0,0.13058388]
[1737743979741,0.173,106860.0,106850.0,0.13058388]
[1737743979942,0.51146352,106860.0,106850.0,0.13058388]
[1737743981543,0.51146352,106860.0,106850.0,0.08358388]
[1737743981724,0.61220975,106860.0,106850.0,0.08358388]
[1737743981963,0.70955704,106860.0,106850.0,0.08358388]
[1737743982205,0.70955704,106860.0,106830.0,0.0481375]
[1737743982206,0.290396,106840.0,106830.0,0.0481375]
[1737743982405,0.51148952,106840.0,106830.0,0.0011375]
[1737743982608,0.51148952,106840.0,106830.0,0.00023371]
[1737743983428,0.52148952,106840.0,106830.0,0.00023371]
[1737743983641,0.41074329,106840.0,106830.0,0.00023371]
[1737743983813,0.51148952,106840.0,106830.0,0.00023371]
[1737743984219,0.41074329,106840.0,106830.0,0.00023371]
[1737743984376,0.51148952,106840.0,106830.0,0.00023371]
[1737743985959,0.36148952,106840.0,106830.0,0.00023371]
[1737743986162,0.51148952,106840.0,106830.0,0.00023371]
[1737743986535,0.53035285,106840.0,106830.0,0.00023371]
[1737743987049,0.54381809,106840.0,106830.0,0.00023371]
[1737743992901,0.42007186,106840.0,106830.0,0.04853371]
[1737743993174,0.42007186,106840.0,106830.0,0.12933371]
[1737743994380,0.32272457,106840.0,106830.0,0.12933371]
[1737743994580,0.66231223,106850.0,106830.0,0.37866171]
[1737743994581,0.3204,106850.0,106830.0,0.37866171]
[1737743994782,0.3204,106850.0,106840.0,0.1495]
[1737743994992,0.460783,106850.0,106840.0,0.1495]
[1737743995220,0.3204,106850.0,106840.0,0.1495]
[1737743995633,0.3204,106850.0,106840.0,0.247777]
[1737743995842,0.47505023,106870.0,106860.0,0.1295]
[1737743995843,0.3204,106870.0,106860.0,0.1295]
[1737743996053,0.15320922,106880.0,106870.0,0.0831]
[1737743996268,0.01285522,106880.0,106870.0,0.18135]
[1737743996483,0.037431,106910.0,106890.0,0.0831]
[1737743996484,0.187081,106910.0,106890.0,0.0831]
[1737743996692,0.42473729,106910.0,106900.0,0.0464]
[1737743997102,0.52548352,106910.0,106900.0,0.0464]
[1737743997314,0.52563086,106910.0,106900.0,0.0464]
[1737743997520,0.53824487,106910.0,106900.0,0.0464]
[1737743997733,0.43749864,106910.0,106900.0,0.0464]
[1737743998147,0.53824487,106910.0,106900.0,0.0464]
[1737743998355,0.58749864,106910.0,106900.0,0.0464]
[1737743999791,0.290318,106900.0,106890.0,0.0831]
[1737743999997,0.38766529,106900.0,106890.0,0.0831]
[1737744000398,0.290318,106900.0,106890.0,0.0831]
[1737744000825,0.48841152,106900.0,106890.0,0.0831]
[1737744001817,0.34809352,106900.0,106880.0,0.0492896]
[1737744002022,0.24107723,106890.0,106880.0,0.0492896]
[1737744002239,0.24107723,106890.0,106880.0,0.0483]
[1737744002397,0.140331,106890.0,106880.0,0.0483]
[1737744002622,0.140331,106890.0,106870.0,0.0797]
[1737744002623,0.290344,106880.0,106870.0,0.0797]
[1737744002829,0.80883752,106880.0,106870.0,0.0797]
[1737744003061,0.610757,106870.0,106860.0,0.0468988]
[1737744003256,0.51145052,106870.0,106860.0,0.0009988]
[1737744003964,0.313383,106850.0,106840.0,0.0454]
[1737744004171,0.51147652,106850.0,106840.0,0.0454]
[1737744004373,0.51147652,106850.0,106840.0,0.04549191]
[1737744004868,0.51147652,106850.0,106840.0,9.191e-05]
[1737744008089,0.84689637,106850.0,106840.0,9.191e-05]
[1737744008297,0.300396,106840.0,106830.0,8e-07]
[1737744008508,0.300396,106840.0,106830.0,4.99e-05]
[1737744008509,0.62223575,106840.0,106830.0,4.99e-05]
[1737744009166,0.52148952,106840.0,106830.0,4.99e-05]
[1737744010313,0.62223575,106840.0,106830.0,4.99e-05]
[1737744010513,0.52148952,106840.0,106830.0,4.99e-05]
[1737744010791,0.62223575,106840.0,106830.0,4.99e-05]
[1737744011580,0.290423,106820.0,106810.0,0.0001418]
[1737744011779,0.83191652,106820.0,106810.0,0.00063305]
[1737744015679,0.52151652,106820.0,106810.0,0.00063305]
[1737744015880,0.52151652,106820.0,106810.0,0.00045881]
[1737744016097,0.52151652,106820.0,106780.0,0.1240276]
[1737744016098,0.290462,106790.0,106780.0,0.0011276]
[1737744016345,0.67584952,106790.0,106780.0,4.908e-05]
[1737744016736,0.69884952,106790.0,106780.0,4.908e-05]
[1737744018244,0.72186001,106790.0,106780.0,4.908e-05]
[1737744018776,0.73186001,106790.0,106780.0,4.908e-05]
[1737744020019,0.15,106770.0,106750.0,0.0001419]
[1737744020240,0.53438094,106760.0,106750.0,0.00013831]
[1737744020446,0.55513876,106760.0,106750.0,0.00013831]
[1737744022215,0.56513876,106760.0,106750.0,0.00013831]
[1737744022469,0.66588499,106760.0,106750.0,0.00013831]
[1737744022683,0.33434982,106750.0,106740.0,0.0301419]
[1737744022912,0.66633216,106750.0,106740.0,0.01154283]
[1737744023118,0.313541,106730.0,106720.0,0.1410197]
[1737744023320,0.313541,106730.0,106720.0,0.0173097]
[1737744023321,0.51163452,106730.0,106720.0,0.0173097]
[1737744023528,0.71167483,106730.0,106720.0,7e-07]
[1737744023699,0.290567,106710.0,106700.0,0.0494418]
[1737744023878,0.66179945,106710.0,106700.0,0.0001418]
[1737744024091,0.67179945,106710.0,106700.0,0.0001418]
[1737744024317,0.51166052,106710.0,106700.0,0.0001418]
[1737744024864,0.61240675,106710.0,106700.0,0.0001418]